Cogmind - Beta 14 @@@ ROGUE MODE // 2025.03.23 @ 22:09:14 Player: Diford Result: Destroyed by G-47 Trooper with Particle Gun Performance ------------- Evolutions (2) 1000 Regions Visited (3) 600 Robots Destroyed (15) 75 Value Destroyed (331) 331 Prototype IDs (2) 40 Alien Tech Used (0) 0 Bonus (0) 0 TOTAL SCORE: 2046 Bonus ------- None Cogmind --------- Core Integrity 0/550 Matter 158/300 Energy 100/100 System Corruption 2% Temperature Cool (9) Movement Core (50) Location -8/Materials Parts ------- > --- POWER (2) -------- (None) > --- PROPULSION (3) --- (None) > --- UTILITY (3) ------ (None) > --- WEAPON (3) ------- (None) > --- INVENTORY (5) ---- Light Treads Compact Wheel Peak State ------------ > --- POWER ------------ Improved Ion Engine > --- PROPULSION ------- Improved Flight Unit > --- UTILITY ---------- Advanced Visual Processing Unit Reaction Control System Improved Light Armor Plating > --- WEAPON ----------- Enhanced Autogun > --- INVENTORY -------- Light Treads Compact Wheel [Rating: 18] Favorites ----------- Power Light Ion Engine Engine Light Ion Engine Propulsion Aluminum Leg Leg Aluminum Leg Wheel Compact Wheel Flight Unit Flight Unit Utility Large Matter Pod Device Structural Scanner Storage Large Matter Pod Processor Advanced Visual Processing Unit Hackware System Shield Protection Improved Light Armor Plating Weapon Assault Rifle Ballistic Gun Assault Rifle Ballistic Cannon Flak Cannon Launcher Grenade Launcher Build | -11 -10 -9 -8 ------- Run | Yrd Mat Mat Mat Slots Evolved 4 | . . 2 2 Power 1 | . . 1 . Propulsion 1 | . . . 1 Utility 1 | . . . 1 Weapon 1 | . . 1 . Parts Attached 38 | 8 10 14 6 Power 8 | 3 2 2 1 Engine 8 | 3 2 2 1 Core . | . . . . Reactor . | . . . . Propulsion 12 | 2 2 7 1 Treads . | . . . . Leg 3 | . . 2 1 Wheel 4 | 2 1 1 . Hover . | . . . . Flight 5 | . 1 4 . Utility 10 | 1 4 2 3 Device 4 | 1 2 . 1 Storage 2 | . 2 . . Processor 2 | . . 2 . Hackware 1 | . . . 1 Protection 1 | . . . 1 Artifact . | . . . . Weapon 8 | 2 2 3 1 Energy Gun . | . . . . Energy Cannon . | . . . . Ballistic Gun 6 | 2 1 2 1 Ballistic Cannon 1 | . . 1 . Launcher 1 | . 1 . . Special Weapon . | . . . . Impact Weapon . | . . . . Slashing Weapon . | . . . . Piercing Weapon . | . . . . Special Melee Weapon . | . . . . Unidentified Prototypes 2 | . . 1 1 Parts Lost 19 | . 5 2 12 Power 4 | . 1 . 3 Propulsion 6 | . 2 1 3 Utility 4 | . . . 4 Weapon 5 | . 2 1 2 Highest Loss Streak 7 | . 3 1 7 To Critical Strikes . | . . . . Average Slot Usage (%) 83 | . 81 93 46 Engine 16 | . 12 20 7 Leg 6 | . . 10 2 Wheel 4 | . 15 1 . Flight 7 | . . 9 10 Device 4 | . 18 . 2 Storage 9 | . 9 11 2 Processor 7 | . . 10 7 Ballistic Gun 17 | . 14 20 5 Ballistic Cannon 5 | . . 8 2 Launcher 2 | . 11 . . Peak Build Rating 18 | 6 7 17 18 Average Rating 11 | 3 5 12 13 On Entrance 6 | . 6 4 16 Naked Turns 32 | . . . 32 Heaviest Build 22 | 7 11 22 20 Greatest Support 20 | 20 20 16 10 Greatest Overweight (x) 4 | . 2 3 4 Average Overweight (x) . | . . 1 1 Largest Inventory Capacity 5 | 5 5 5 5 Average Capacity 5 | 5 5 5 5 Most Carried 5 | 2 5 5 3 Average Carried 3 | . 3 4 1 Final Capacity 5 | 5 5 5 5 Final Carried 4 | 1 4 3 2 Class Distribution -------------------- 56% | Mutant 43% | Skirmisher Dominant Class ---------------- Mutant | -10/Materials Skirmisher | -9/Materials Mutant | -8/Materials Resources | -11 -10 -9 -8 ----------- Run | Yrd Mat Mat Mat Matter Collected 575 | 262 32 117 164 Remotely 32 | . 32 . . Salvage Created 276 | 39 65 67 105 Parts 27 | 3 15 4 5 Haulers Intercepted . | . . . . Recyclers Shooed 3 | . 1 . 2 Parts Field Recycled . | . . . . Retrieved Matter . | . . . . Parts Self-Destructed . | . . . . Prevented . | . . . . Kills | -11 -10 -9 -8 ------- Run | Yrd Mat Mat Mat Combat Hostiles Destroyed 14 | 1 9 2 2 Guns 7 | 1 2 2 2 AOE 7 | . 7 . . Classes Destroyed 4 | 1 2 1 . Watcher 1 | . 1 . . Swarmer 9 | . 9 . . Grunt 3 | 1 . 1 1 Sentry 2 | . . 1 1 Best Kill Streak 7 | 1 7 1 1 Combat Bots Only 6 | 1 6 1 1 Max Kills in Single Turn 2 | 1 2 1 1 Gunslinging . | . . . . Exploded 2 | . 2 . . Melee . | . . . . Uniques/NPCs Destroyed . | . . . . Combat | -11 -10 -9 -8 -------- Run | Yrd Mat Mat Mat Hostile Shots Fired 151 | 5 59 33 54 Missed 37 | . 12 11 14 Damage Taken 2002 | 54 476 271 1201 Core 740 | 22 140 24 554 Absorbed by Shields . | . . . . Core Remaining (%) 73 | 91 35 94 . Volleys Fired 65 | 4 30 14 17 Largest 3 | 2 2 3 1 Hottest 87 | 40 50 87 25 Shots Fired 93 | 8 39 29 17 Gun 77 | 8 30 22 17 Cannon 7 | . . 7 . Launcher 9 | . 9 . . Special . | . . . . Kinetic 84 | 8 30 29 17 Thermal . | . . . . Explosive 9 | . 9 . . Electromagnetic . | . . . . Robot Hit Streak 8 | 5 8 5 3 Robot Miss Streak 9 | 2 2 9 2 Penetration Max . | . . . . Secondary Targets . | . . . . Shots Hit Robots 50 | 6 18 16 10 Core Hits 31 | 2 15 6 8 Critical Kills . | . . . . Critical Parts Destroyed 2 | . 1 1 . Critical Strikes 2 | . 1 1 . Destroy 2 | . 1 1 . Melee Attacks . | . . . . Impact . | . . . . Slashing . | . . . . Piercing . | . . . . Sneak Attacks . | . . . . Combat Hostiles . | . . . . Follow-up Attacks . | . . . . Damage Inflicted 1196 | 63 690 267 176 Guns 561 | 63 162 171 165 Cannons 63 | . . 63 . Explosions 528 | . 528 . . Melee . | . . . . Ramming 44 | . . 33 11 Kinetic 624 | 63 162 234 165 Thermal . | . . . . Explosive 528 | . 528 . . Electromagnetic . | . . . . Impact . | . . . . Slashing . | . . . . Piercing . | . . . . Highest Corruption 2 | . . . 2 Average Corruption 2 | . . . 2 Corruption Purged . | . . . . Corruption Blocked . | . . . . Overload Shots . | . . . . Overflow Damage 29 | . 29 . . Projectiles . | . . . . Explosions 29 | . 29 . . Melee . | . . . . Knockbacks . | . . . . Impact . | . . . . Kinetic . | . . . . Secondary . | . . . . Self-Inflicted Damage 99 | . 95 . 4 Shots 3 | . 3 . . Rammed 8 | . . . 8 Targets Rammed 28 | . . 20 8 Kicked 20 | . . 20 . Crushed . | . . . . Highest Temperature 45 | 12 20 45 13 Average Temperature 15 | 6 10 21 4 Received Heat Transfer 372 | 30 30 123 189 Siege Activations . | . . . . Robots Corrupted . | . . . . Combat Hostiles . | . . . . Parts Fried . | . . . . Impact Corruptions . | . . . . Robots Melted . | . . . . Combat Hostiles . | . . . . Parts Melted . | . . . . Heat Transferred . | . . . . Parts Sabotaged . | . . . . Parts Stolen . | . . . . Parts Stripped . | . . . . Power Chain Reactions . | . . . . Alert | -11 -10 -9 -8 ------- Run | Yrd Mat Mat Mat Peak Influence 208 | 20 208 84 170 Initial 39 | . 13 39 22 Average 60 | 6 128 37 75 Maximum Alert Level 1 | . 1 . . Low Security (%) 94 | 100 75 100 100 Level 1 5 | . 24 . . Level 2 . | . . . . Level 3 . | . . . . Level 4 . | . . . . Level 5 . | . . . . High Security . | . . . . Max Security . | . . . . Squads Dispatched 3 | . 1 1 1 Investigation . | . . . . Extermination . | . . . . Reinforcement 3 | . 1 1 1 Assault . | . . . . Garrison . | . . . . Intercept . | . . . . Searches Triggered . | . . . . Construction Impeded . | . . . . Haulers Reinforced . | . . . . Active Scanning Responses . | . . . . Cargo Convoy Interrupts . | . . . . Stealth | -11 -10 -9 -8 --------- Run | Yrd Mat Mat Mat Distress Signals 2 | . 1 1 . Communications Jammed . | . . . . Distress Signals . | . . . . Times Spotted 47 | 1 14 19 13 Peak Tracking Total 6 | 1 5 4 6 Tactical Retreats 3 | . . . 3 Traps | -11 -10 -9 -8 ------- Run | Yrd Mat Mat Mat Traps Triggered . | . . . . Indirectly . | . . . . Trap Hack Attempts . | . . . . Triggered . | . . . . Disarmed . | . . . . Reprogrammed . | . . . . Reused . | . . . . Traps Extracted . | . . . . Installed . | . . . . Triggered . | . . . . Machines | -11 -10 -9 -8 ---------- Run | Yrd Mat Mat Mat Machines Disabled 2 | . 2 . . Max in Single Turn 2 | . 2 . . Machines Repaired . | . . . . Machines Dismantled . | . . . . Machines Sabotaged . | . . . . Overloaded Fab Kills . | . . . . Hacking | -11 -10 -9 -8 --------- Run | Yrd Mat Mat Mat Machines Accessed 3 | . 2 1 . Terminals 2 | . 2 . . Fabricators . | . . . . Repair Stations . | . . . . Recycling Units . | . . . . Scanalyzers 1 | . . 1 . Garrison Access . | . . . . Total Hacks 6 | . 4 2 . Successful 5 | . 3 2 . Failed 1 | . 1 . . Catastrophic . | . . . . Database Lockouts . | . . . . Manual . | . . . . Terminals 4 | . 4 . . Fabricators . | . . . . Repair Stations . | . . . . Recycling Units . | . . . . Scanalyzers 2 | . . 2 . Garrison Access . | . . . . Terminal Hacks 3 | . 3 . . Record 2 | . 2 . . Locate Traps 1 | . 1 . . Fabricator Hacks . | . . . . Repair Station Hacks . | . . . . Recycling Unit Hacks . | . . . . Scanalyzer 2 | . . 2 . Insert Component 1 | . . 1 . Analyze 1 | . . 1 . Garrison Access Hacks . | . . . . Unauthorized Hacks . | . . . . Terminals . | . . . . Fabricators . | . . . . Repair Stations . | . . . . Recycling Units . | . . . . Scanalyzers . | . . . . Garrison Access . | . . . . Data Cores Recovered . | . . . . Used . | . . . . Hacking Detections 2 | . 1 1 . Full Trace Events . | . . . . Feedback Events . | . . . . Feedback Blocked . | . . . . Robot Schematics Acquired . | . . . . Robots Built . | . . . . Authchips . | . . . . Time . | . . . . Total Robot Build Rating . | . . . . Part Schematics Acquired 1 | . . 1 . Parts Built . | . . . . Authchips . | . . . . Time . | . . . . Total Part Build Rating . | . . . . Parts Repaired . | . . . . Time . | . . . . Parts Recycled . | . . . . Recycled Matter . | . . . . Retrieved Matter . | . . . . Retrieved Components . | . . . . Parts Scanalyzed 1 | . . 1 . Part Schematics Acquired 1 | . . 1 . Parts Damaged . | . . . . Bothacking | -11 -10 -9 -8 ------------ Run | Yrd Mat Mat Mat Used RIF Installer . | . . . . Robots Hacked . | . . . . Non-combat . | . . . . Combat . | . . . . Robot Hacks Applied . | . . . . Relay Couplers Released . | . . . . Fabnet Peak Effective % . | . . . . Robots Rewired . | . . . . Allies Hacked . | . . . . Hacks Repelled . | . . . . Allies | -11 -10 -9 -8 -------- Run | Yrd Mat Mat Mat Total Allies . | . . . . Largest Group . | . . . . Highest-Rated Group . | . . . . Highest-Rated Ally . | . . . . Total Orders . | . . . . Ally Attacks . | . . . . Total Damage . | . . . . Kills . | . . . . Allies Corrupted . | . . . . Allies Melted . | . . . . Intel | -11 -10 -9 -8 ------- Run | Yrd Mat Mat Mat Robot Analysis Total . | . . . . Derelict Logs Recovered . | . . . . Drone Launches . | . . . . Drone Recoveries . | . . . . Exploration | -11 -10 -9 -8 ------------- Run | Yrd Mat Mat Mat Turns Passed 2309 | 91 493 1400 325 Spaces Moved 1283 | 89 407 591 196 Core 223 | 22 47 . 154 Treads . | . . . . Legs 552 | . . 510 42 Wheels 497 | 67 360 70 . Hover . | . . . . Flight 11 | . . 11 . Fastest Speed 50 | 50 80 100 50 Average Speed 153 | 72 99 214 120 Slowest Speed 260 | 80 150 260 250 Overloaded Moves . | . . . . Propulsion Burnouts . | . . . . Robots Hopped . | . . . . Cave-ins Triggered . | . . . . Exploration Rate (%) 29 | 6 54 38 20 Regions Visited 3 Branch Regions . Pre-discovered Areas . | . . . . Known Exits Taken . | . . . . Unknown Exits Taken 3 | 1 1 1 . Scrap Searched . | . . . . Spaces Dug . | . . . . Terrain Destroyed 43 | . 43 . . Melee . | . . . . Projectile . | . . . . AOE 43 | . 43 . . Terrain Rammed . | . . . . Walls Destroyed . | . . . . Machines Disabled . | . . . . Actions | -11 -10 -9 -8 --------- Run | Yrd Mat Mat Mat Total 1505 | 107 459 671 268 Wait 49 | . 3 13 33 Move 1280 | 88 406 590 196 Hop . | . . . . Pick Up 32 | 7 7 12 6 Fast Attach . | . . . . Attach 26 | 6 5 9 6 Detach 4 | . 2 1 1 Swap 12 | 2 5 5 . Drop 9 | . 1 7 1 Fire 65 | 4 30 14 17 Melee . | . . . . Ram 8 | . . . 8 Kick 20 | . . 20 . Crush . | . . . . Escape Stasis . | . . . . Rewire . | . . . . Trap . | . . . . Miscellaneous . | . . . . Route ------- -11/Scrapyard -10/Materials (discovered 2 exits: *Mat / [*Min]) -9/Materials -8/Materials History --------- Turn | Location | Event 2 | -11/Scrapyard | Met Revision 17 51 | -11/Scrapyard | Discovered new exit (range 8) 92 | -11/Scrapyard | Entered Materials 301 | -10/Materials | Build established: Mutant 379 | -10/Materials | Discovered new exit (range 8) 525 | -10/Materials | Core integrity fell below 50% 553 | -10/Materials | Lost 3 parts (1p2w) 582 | -10/Materials | Discovered new exit (range 3) 585 | -10/Materials | Entered another Materials area 585 | -9/Materials | Evolved 2 slots: Power x1, Weapon x1 1240 | -9/Materials | Build established: Skirmisher 1954 | -9/Materials | Discovered new exit (range 11) 1985 | -9/Materials | Entered another Materials area 1985 | -8/Materials | Evolved 2 slots: Propulsion x1, Utility x1 2140 | -8/Materials | Lost 7 parts (2p2n1u2w) 2253 | -8/Materials | Build established: Mutant 2285 | -8/Materials | Core integrity fell below 50% 2303 | -8/Materials | Core integrity fell below 20% 2309 | -8/Materials | Lost 5 parts (1p1n3u) 2310 | -8/Materials | Destroyed by G-47 Trooper with Particle Gun Last Messages --------------- Slammed into H-61 Shepherd. Imp. Flight Unit destroyed. Knocked back. Acquired 3 matter. Slammed into R-06 Scavenger. Imp. Ion Engine destroyed. Penetrated by Slug. Knocked back. K-01 Serf collects debris. Knocked back. Acquired 10 matter. Penetrated by Slug. Knocked back. Acquired 5 matter. R-06 Scavenger collects Enh. Autogun. K-01 Serf cleans the Fusion Modulator. Slug penetrates Wall. Knocked back. Acquired 6 matter. [Achievement: First Step to Greatness] Map ----- +----------------------------------------------------+ | ????????????????????????????????????????# #????? | | ?????????????????????????????????######## % #????? | | ?????????????????????????????????# = # #????? | | ?????????????????????????????????# " #????? | | ?????????????????????????????????# + #????? | | ?????????????????????????????????# # #????? | | ?????????????????????????????????# ! # ##???? | | ??????????????????????????+??????# !# "##### | | ?????????????????????????? ??????######## #/ = | | ????????????????????????"" ?????????????#^^^# | | ????????????????????????"" ?????????????#^^ # """ | | ????????????????????????"" ????????????#" + """ | | ???????????????????????? ????????????## # """ | | ????????####???????????? ?????????????# # | | ????????# ????????###+###???????????# ###/## | | ????????# ####### #????????### ?# #? | | ????????# ##### ## #? | | ????????# T r ## #? | | ????????# ##### ## #? | | ????????# ####### u #??????????# ## #? | | ????????# ????????????### ###??????????######## #? | | ????????????????????????# #???????????????????# #? | | ????????????????????????#H##??????????????????# #? | | ????????????????????????# ;#??????????????????# #? | | ????????????????????????# ;#??????????????????# #? | | ????????????????????????#@g#??????????????????# #? | | ???????????????????????##/#######?????????????# #? | | ???????????????????????# % #?????????????# #? | | ???????????????????????#" % #?????????????# #? | | ???????????????????????#""" #?????????????# #? | | ???????????????????????# "" #?????????????# #? | | ???????????????????????# + ????????????# #? | | ???????????????????????# """ # ??????????# #? | | ???????????????????????# """ #?###?????????# #? | | ???????????????????????# """k #?????????????# #? | | ???????????????????????# #?????????????# #? | | ???????????????????????#######+##?????????????# #? | | ?????????????????????????????# #??????????????# #? | | ?????????????????????######### ################ #? | | ???????????? #? | | ???????????? ################? | | ???????????? #???????????????? | | ????????????? ^ #???????????????? | | ????????????? #???????????????? | | ??????????????#####+#+############???????????????? | | ?????????????????????????????????????????????????? | | ?????????????????????????????????????????????????? | | ?????????????????????????????????????????????????? | | ?????????????????????????????????????????????????? | | ?????????????????????????????????????????????????? | +----------------------------------------------------+ Best States ------------- Heat Dissipation 35 Energy Generation 15 Energy Capacity 275 Matter Stores 286 Matter Capacity 450 Sight Range 20 Terrain Scan Density 10 Armor Coverage 150 Evasion (%) 55 Defensive Hacking 10 Item Schematics ----------------- Imp. Flight Unit | -9/Materials | Scanalyzed Robot Schematics ------------------ None Fabricated ------------ Nothing Alien Tech Used ----------------- None Achievements -------------- First Step to Greatness Let's See Who's Tougher Oops Risk Taker Storm Trooper Uninvited Guest Challenges ------------ None Game ------ Seed MappingGuidedFilter Manual? 0 Play Time 00:55:59 Cumulative 0.8 hours Start 2025.03.23 @ 21:07:51 End 2025.03.23 @ 22:09:14 Sessions 1 Manual Loads 0 Difficulty Rogue Special Mode None Game No. 1 Rogue 1 Adventurer 0 Explorer 0 Win Type - Total 0 Types 0/0/0/0/0/0/0/0/0 Lore% 0 Gallery% 2 Achievement% 2 Wizard Run 0 Options --------- Layout 1 ASCII 0 Keyboard 1 Movement Numpad Keybinds 0 Fullscreen 2 Font 32/SmallcapsGlow Map View 50x35 Zoom Use 0% Tactical HUD 0 Map Filters NONE Filters NONE Steam 1 RUN: 691fb141-e386-45c3-bee9-e60bf8e2993d